[Event "FIDE Open World Rapid 2024"]
[Site "New York"]
[Date "2024.12.27"]
[Round "7.13"]
[White "Bu, Xiangzhi"]
[Black "Nepomniachtchi, Ian"]
[Result "1/2-1/2"]
[ECO "D55"]
[WhiteElo "2684"]
[BlackElo "2755"]
[Annotator "TA"]
[PlyCount "119"]
[EventDate "2024.12.14"]
[EventType "swiss"]
[EventCountry "USA"]
[SourceTitle "playchess.com"]
[Source "ChessBase"]
[SourceQuality "1"]
[TimeControl "900+10"]

{[%evp 16,119,6,9,15,5,17,4,8,14,4,5,22,17,20,21,25,13,18,14,8,10,21,25,31,27,27,33,30,18,33,0,0,0,0,0,0,0,0,0,0,0,0,0,0,0,13,11,41,43,49,0,0,0,0,0,0,0,0,0,0,0,0,0,0,0,0,0,0,0,0,0,0,0,0,0,0,0,0,-8,-8,-8,0,-8,-8,-8,0,0,0,0,0,0,0,0,0,-8,0,0,0,0,0,0,0,0,0,0]} 1. d4 {[%emt 0:00:01]} Nf6 {[%emt 0:00:02]} 2. c4 {[%emt 0:00:02]} e6 {[%emt 0:00:01]} 3. Nf3 {[%emt 0:00:06]} d5 {[%emt 0:00:02]} 4. Nc3 {[%emt 0:00:02]} Be7 {[%emt 0:00:01]} 5. Bg5 {[%emt 0:00:06]} h6 {[%emt 0:00:13]} 6. Bxf6 {[%emt 0:00:09]} Bxf6 {[%emt 0:00:02]} 7. Qb3 {[%emt 0:00:08]} c6 {[%emt 0:00:08]} 8. e3 {[%emt 0:00:01]} O-O {[%emt 0:00:08]} 9. Be2 {[%emt 0:00:02]} Nd7 {[%emt 0:00:02]} 10. O-O {[%emt 0:00:04]} dxc4 {[%emt 0:00:42]} 11. Qxc4 {[%emt 0:00:26]} e5 {[%emt 0:00:04]} 12. Ne4 {[%emt 0:00:10]} exd4 {[%emt 0:00:03]} 13. Nxf6+ {[%emt 0:00:33]} Nxf6 {[%emt 0:00:34]} 14. Nxd4 {[%emt 0:00:09]} Qe7 {[%emt 0:00:12]} 15. Rac1 {[%emt 0:00:10]} Bd7 {[%emt 0:00:48]} 16. Bf3 {[%emt 0:00:41]} Rfc8 {[%emt 0:00:13][%cal Bf8c8,Bc8e8,Be8e4][%mdl 32]} 17. Qc5 {[%emt 0:00:06]} Qxc5 {[%emt 0:01:23]} 18. Rxc5 {[%emt 0:00:02]} Re8 {[%emt 0:00:04]} 19. b4 {[%emt 0:00:17]} Ne4 {[%emt 0:00:04]} 20. Bxe4 {[%emt 0:01:09]} Rxe4 {[%emt 0:00:05]} 21. Rd1 {[%emt 0:00:16]} Kf8 {[%emt 0:00:33]} 22. a3 {[%emt 0:00:27]} g6 {[%emt 0:01:25]} 23. Rc3 {[%emt 0:01:00]} a5 {[%emt 0:00:39]} 24. h3 {[%emt 0:03:34][%cal Ob4b5]} Re7 {[%emt 0:00:46]} 25. Rb1 {[%emt 0:00:19]} axb4 {[%emt 0:01:03]} 26. axb4 {[%emt 0:01:07]} Ra6 {[%emt 0:00:16]} 27. Rcc1 {[%emt 0:02:55]} Rb6 {[%emt 0:00:11]} 28. Rc4 {[%emt 0:00:11]} Re4 {[%emt 0:02:57]} 29. Kf1 {[%emt 0:00:09]} Ke8 {[%emt 0:00:45]} 30. Ke2 {[%emt 0:00:12]} Be6 {[%emt 0:00:11]} 31. Rc5 {[%emt 0:00:14]} Bd7 {[%emt 0:00:26]} 32. Kd3 {[%emt 0:00:09]} Re7 {[%emt 0:00:04]} 33. Kc3 {[%emt 0:00:32]} (33. Ra1 $14 Be6 34. Kc3) 33... Ra6 $11 {[%emt 0:00:09]} 34. Ra5 {[%emt 0:00:49]} Rxa5 {[%emt 0:00:01]} 35. bxa5 {[%emt 0:00:01][%cal Oa5a6][%mdl 4096] Endgame KRB-KRN} Re5 {[%emt 0:00:04]} 36. Rxb7 {[%emt 0:00:33] and a6 would now be decisive} Rxa5 {[%emt 0:00:02]} 37. Nb3 {[%emt 0:00:22]} Ra2 {[%emt 0:01:44]} 38. Nc5 {[%emt 0:00:16]} Bc8 {[%emt 0:00:27]} 39. Rc7 {[%emt 0:00:10]} Be6 {[%emt 0:00:01]} 40. Nxe6 {[%emt 0:00:17]} fxe6 {[%emt 0:00:01] KR-KR} 41. Rg7 {[%emt 0:00:42]} g5 {[%emt 0:00:28]} 42. f4 {[%emt 0:01:41]} Rxg2 {[%emt 0:00:05]} 43. Rg6 {[%emt 0:00:02]} Kf7 {[%emt 0:00:30]} 44. Rxh6 {[%emt 0:00:01]} gxf4 {[%emt 0:00:02]} 45. exf4 {[%emt 0:00:01]} Rf2 {[%emt 0:00:01]} 46. Rh7+ {[%emt 0:00:29]} Kf6 {[%emt 0:00:01]} 47. Rc7 {[%emt 0:00:02]} Rxf4 {[%emt 0:00:08]} 48. Rxc6 {[%emt 0:00:01]} Kf5 {[%emt 0:00:07]} 49. Kd2 {[%emt 0:00:07]} Rf2+ {[%emt 0:00:10]} 50. Ke1 {[%emt 0:00:13]} Rh2 {[%emt 0:00:01]} 51. Rc3 {[%emt 0:00:07]} e5 {[%emt 0:00:02]} 52. Rf3+ {[%emt 0:00:05]} Ke4 {[%emt 0:00:04]} 53. Ra3 {[%emt 0:00:02]} Kf4 {[%emt 0:00:00]} 54. Kf1 {[%emt 0:00:02]} e4 {[%emt 0:00:01]} 55. Ke1 {[%emt 0:00:03]} e3 {[%emt 0:00:07][%cal Of4f3] ( -> ...Kf3!)} 56. Ra8 {[%emt 0:00:01]} Rxh3 {[%emt 0:00:02]} 57. Rf8+ {[%emt 0:00:01]} Ke4 {[%emt 0:00:01]} 58. Re8+ {[%emt 0:00:01]} Kf3 {[%emt 0:00:00][%cal Rh3h1]} (58... Kd3 $5 59. Rd8+ $8 Ke4 $11) 59. Rf8+ {[%emt 0:00:02]} Ke4 {[%emt 0:00:01]} 60. Re8+ {[%emt 0:00:12]} 1/2-1/2

[Event "FIDE Open World Rapid 2024"]
[Site "New York"]
[Date "2024.12.27"]
[Round "7.13"]
[White "Kevlishvili, Robby"]
[Black "Karthik Venkataraman"]
[Result "0-1"]
[ECO "B30"]
[WhiteElo "2556"]
[BlackElo "2603"]
[Annotator "ChessBase"]
[PlyCount "64"]
[EventDate "2024.12.14"]
[EventType "swiss"]
[EventCountry "USA"]
[SourceTitle "playchess.com"]
[Source "ChessBase"]
[SourceQuality "1"]
[TimeControl "900+10"]

1. e4 {[%emt 0:00:02]} c5 {[%emt 0:00:05]} 2. Nf3 {[%emt 0:00:02]} Nc6 {[%emt 0:00:02]} 3. Bb5 {[%emt 0:00:03]} e6 {[%emt 0:00:03]} 4. Bxc6 {[%emt 0:00:02]} bxc6 {[%emt 0:00:03]} 5. d3 {[%emt 0:00:09]} Qc7 {[%emt 0:00:19]} 6. O-O {[%emt 0:00:12]} Ne7 {[%emt 0:00:21]} 7. Re1 {[%emt 0:00:23]} Ng6 {[%emt 0:00:20]} 8. h4 {[%emt 0:00:56]} h5 {[%emt 0:00:32]} 9. e5 {[%emt 0:01:41]} Be7 {[%emt 0:00:16]} 10. Nbd2 {[%emt 0:03:12]} f6 {[%emt 0:04:03]} 11. Ne4 {[%emt 0:05:38]} Nxe5 {[%emt 0:01:16]} 12. Nxe5 {[%emt 0:00:02]} Qxe5 {[%emt 0:04:33]} 13. Ng3 {[%emt 0:00:02]} Qc7 {[%emt 0:00:22]} 14. Nxh5 {[%emt 0:00:16]} Bf8 {[%emt 0:00:48]} 15. Qg4 {[%emt 0:00:28]} d6 {[%emt 0:00:10]} 16. Nf4 {[%emt 0:00:59]} e5 {[%emt 0:00:04]} 17. Qg3 {[%emt 0:00:05]} Bf5 {[%emt 0:00:48]} 18. Ng6 {[%emt 0:00:07]} Bxg6 {[%emt 0:00:33]} 19. Qxg6+ {[%emt 0:00:02]} Qf7 {[%emt 0:00:01]} 20. Qg4 {[%emt 0:01:23]} Qh5 {[%emt 0:00:17]} 21. Qa4 {[%emt 0:01:31]} Kd7 {[%emt 0:00:11]} 22. g3 {[%emt 0:00:11]} g5 {[%emt 0:00:11]} 23. Qb3 {[%emt 0:00:13]} Rc8 {[%emt 0:00:07]} 24. Bd2 {[%emt 0:01:11]} gxh4 {[%emt 0:00:27]} 25. Ba5 {[%emt 0:00:01]} Be7 {[%emt 0:00:43]} 26. Kg2 {[%emt 0:00:26]} h3+ {[%emt 0:00:44]} 27. Kh2 {[%emt 0:00:04]} Qf3 {[%emt 0:00:01]} 28. Rg1 {[%emt 0:00:04]} Qxf2+ {[%emt 0:00:01]} 29. Kh1 {[%emt 0:00:01]} Rb8 {[%emt 0:00:29]} 30. Qf7 {[%emt 0:00:10]} Qf3+ {[%emt 0:00:12]} 31. Kh2 {[%emt 0:00:02]} Rxb2 {[%emt 0:00:02]} 32. Rac1 {[%emt 0:00:37]} Qxd3 {[%emt 0:00:07]} 0-1

[Event "FIDE Open World Rapid 2024"]
[Site "New York"]
[Date "2024.12.27"]
[Round "7.14"]
[White "Aronian, Levon"]
[Black "Nesterov, Arseniy"]
[Result "1-0"]
[ECO "C24"]
[WhiteElo "2747"]
[BlackElo "2599"]
[Annotator "TA"]
[PlyCount "117"]
[EventDate "2024.12.14"]
[EventType "swiss"]
[EventCountry "USA"]
[SourceTitle "playchess.com"]
[Source "ChessBase"]
[SourceQuality "1"]
[TimeControl "900+10"]

{[%evp 9,117,22,18,23,30,38,37,33,35,12,5,7,18,5,51,57,62,43,55,49,66,70,71,62,73,63,87,75,68,64,72,74,75,57,108,110,103,111,107,121,155,108,191,193,235,219,229,226,239,232,237,233,226,244,227,233,218,172,226,234,222,218,189,145,254,258,298,274,278,281,308,312,328,337,371,368,449,465,575,469,447,433,447,410,480,260,243,274,371,232,241,194,384,375,397,392,348,396,476,389,418,416,1405,559,1182,973,29953,29955,6826,5923]} 1. e4 {[%emt 0:00:01]} e5 {[%emt 0:00:01]} 2. Bc4 {[%emt 0:00:02]} Nf6 {[%emt 0:00:02]} 3. d3 {[%emt 0:00:02]} c6 {[%emt 0:00:02][%cal Bc7c6,Bc6d5,Bd5d4][%mdl 32]} 4. Nf3 {[%emt 0:00:02]} d5 {[%emt 0:00:02]} 5. Bb3 {[%emt 0:00:01]} a5 {[%emt 0:00:01] Hoping for ...a4.} 6. a4 {[%emt 0:00:02]} Bd6 {[%emt 0:00:03]} 7. exd5 {[%emt 0:00:22]} cxd5 {[%emt 0:00:43]} 8. Bg5 {[%emt 0:00:08]} Be6 {[%emt 0:00:48]} 9. Nc3 {[%emt 0:00:02][%cal Ob3d5]} d4 {[%emt 0:00:13]} 10. Bxf6 {[%emt 0:00:03]} gxf6 {[%emt 0:00:07]} 11. Bxe6 {[%emt 0:00:36]} fxe6 {[%emt 0:03:02]} (11... dxc3 $11 12. Bc4 cxb2) 12. Nb5 $14 {[%emt 0:00:08]} O-O {[%emt 0:01:04]} 13. O-O {[%emt 0:00:14]} Nc6 {[%emt 0:00:09]} 14. c3 {[%emt 0:00:34]} dxc3 {[%emt 0:00:18]} 15. bxc3 {[%emt 0:00:01]} Qd7 {[%emt 0:02:01]} 16. Qb3 {[%emt 0:04:29]} Kh8 {[%emt 0:00:19]} 17. Rfe1 {[%emt 0:00:38]} Rad8 {[%emt 0:02:49]} 18. d4 {[%emt 0:00:13]} Bb8 {[%emt 0:00:29]} 19. Rad1 {[%emt 0:00:03]} Qf7 {[%emt 0:02:08]} 20. dxe5 {[%emt 0:00:22]} Nxe5 {[%emt 0:00:14]} 21. Nbd4 {[%emt 0:00:01][%cal Bb5d4,Bd4f3,Bf3e5,Be5g4][%mdl 32]} Ba7 {[%emt 0:01:10]} (21... Rc8 $14) 22. Nxe5 $16 {[%emt 0:01:36]} (22. Qxe6 Nxf3+ 23. gxf3 Qg6+ 24. Qg4 Bxd4 25. Rxd4 Rxd4 26. cxd4 Qc2 $11) (22. Nxe6 Rxd1 23. Rxd1 Nxf3+ 24. gxf3 Rg8+ 25. Kf1 Qh5 $17) 22... fxe5 {[%emt 0:00:02]} 23. Nf3 {[%emt 0:00:01] Active counter play!} (23. Nxe6 $2 Bxf2+ 24. Kh1 Bxe1 $19) (23. Rxe5 $2 Qxf2+ 24. Kh1 Qf1+ 25. Rxf1 Rxf1#) 23... Rxd1 {[%emt 0:01:17]} 24. Qxd1 {[%emt 0:00:01]} Qf4 {[%emt 0:00:01]} 25. Qc2 {[%emt 0:03:07]} (25. Rxe5 $6 Bxf2+ 26. Kh1 (26. Kxf2 $2 Qxe5 27. Qd7 Qxc3 $19) 26... Qc4 $14) (25. Qb1 $142) 25... Rg8 {[%emt 0:01:23]} (25... Qg4 $16 26. Qe2 (26. Nxe5 Rxf2 27. Nxg4 Rxc2+ 28. Kf1 h5 $11) 26... Rf5) 26. Nxe5 $18 {[%emt 0:00:33]} Rg5 {[%emt 0:00:00][%cal Bg8g5,Bg5f5,Bf5f8][%mdl 32]} 27. g3 {[%emt 0:01:41]} Qf6 {[%emt 0:00:33]} 28. Qe2 {[%emt 0:00:18]} Rf5 {[%emt 0:00:16][%cal Rf5f2]} 29. Ng4 $1 {[%emt 0:00:18][%csl LRe6,LRf6]} Qxc3 {[%emt 0:00:27]} 30. Qxe6 {[%emt 0:00:30]} Rf8 {[%emt 0:00:07] Prevents Qe8.} 31. Re4 {[%emt 0:00:53]} Bd4 {[%emt 0:00:14]} 32. Qd7 {[%emt 0:01:21][%csl LRb7,LRd4]} Bc5 {[%emt 0:00:13]} 33. Qd5 $40 {[%emt 0:00:41][%cal Og1g2][%mdl 128] White attacks with force.} (33. Qxb7 Qd2 34. Kh1 Qd1+ (34... h5 $2 35. Re5 $18) 35. Kg2 Qf3+ 36. Kh3 h5 $18) 33... b6 {[%emt 0:00:08]} (33... Qb2 34. Qe5+ (34. Qxc5 Qb1+ 35. Kg2 Qxe4+ 36. Kh3 Qf5 $11) 34... Qxe5 35. Rxe5 Rc8) 34. Kg2 {[%emt 0:00:01]} Qf3+ {[%emt 0:00:02]} 35. Kh3 {[%emt 0:00:01]} Qf7 {[%emt 0:00:17]} 36. Re6 {[%emt 0:00:40]} Qf5 {[%emt 0:00:11]} (36... Bxf2 $16 37. Nh6 Qg7) 37. Re5 {[%emt 0:00:28]} Qf7 {[%emt 0:00:09]} 38. f4 {[%emt 0:00:06]} Qxd5 {[%emt 0:00:09]} 39. Rxd5 {[%emt 0:00:01][%mdl 4096] Endgame KRB-KRN. White is a pawn up.} Kg7 {[%emt 0:00:01]} 40. Ne5 {[%emt 0:00:01]} Re8 {[%emt 0:00:20]} 41. Kg4 {[%emt 0:00:12]} Kf6 {[%emt 0:00:07]} 42. Kf3 {[%emt 0:00:01]} Rc8 {[%emt 0:00:15]} 43. Ke4 {[%emt 0:00:27]} Bg1 {[%emt 0:00:11]} 44. Rd6+ {[%emt 0:00:09]} Kg7 {[%emt 0:00:02]} 45. Rd7+ {[%emt 0:00:11]} Kg8 {[%emt 0:00:01]} 46. h3 {[%emt 0:00:19]} b5 {[%emt 0:00:14]} 47. Rd5 {[%emt 0:00:32]} (47. axb5 a4 48. f5 Rf8 $18) (47. f5 $142 {and f6 would now be decisive} Rf8 48. axb5) 47... bxa4 {[%emt 0:00:19]} 48. Rxa5 {[%emt 0:00:02]} Rc3 {[%emt 0:00:06]} 49. g4 {[%emt 0:00:02][%cal Bg3g4,Bg4g5][%mdl 32]} ({Less strong is} 49. Rxa4 Rxg3 50. Ra2 Bc5 $16) 49... Rxh3 {[%emt 0:00:04]} 50. Rxa4 {[%emt 0:00:04]} Rb3 $2 {[%emt 0:00:17]} (50... Re3+ {was necessary.} 51. Kf5 Rb3) 51. g5 {[%emt 0:00:08]} Rb8 {[%emt 0:00:16] Dodges Ra8} 52. Rc4 {[%emt 0:00:10] Wards off Bc5} Re8 {[%emt 0:00:09]} 53. Kf3 {[%emt 0:00:14]} Bb6 {[%emt 0:00:10]} 54. Ng4 {[%emt 0:00:06] White wants to mate with Nf6+.} Kf7 {[%emt 0:00:09]} 55. Rc6 {[%emt 0:00:15]} Rb8 {[%emt 0:00:09]} (55... Bd8 $142 56. Nh6+ Kf8) 56. Rh6 {[%emt 0:00:11]} (56. Ne5+ $142 Ke8 57. f5 (57. Re6+ Kd8 $18)) 56... Kg7 {[%emt 0:00:06]} 57. Nf6 {[%emt 0:00:02]} Bd4 {[%emt 0:00:02]} 58. Rxh7+ {[%emt 0:00:08]} Kg6 {[%emt 0:00:00]} 59. Kg4 {[%emt 0:00:03]} 1-0

[Event "FIDE Open World Rapid 2024"]
[Site "New York"]
[Date "2024.12.27"]
[Round "7.14"]
[White "Kacharava, Nikolozi"]
[Black "Ibarra Jerez, Jose Carlos"]
[Result "0-1"]
[ECO "C78"]
[WhiteElo "2510"]
[BlackElo "2556"]
[Annotator "ChessBase"]
[PlyCount "102"]
[EventDate "2024.12.14"]
[EventType "swiss"]
[EventCountry "USA"]
[SourceTitle "playchess.com"]
[Source "ChessBase"]
[SourceQuality "1"]
[TimeControl "900+10"]

1. e4 {[%emt 0:00:02]} e5 {[%emt 0:00:01]} 2. Nf3 {[%emt 0:00:03]} Nc6 {[%emt 0:00:02]} 3. Bb5 {[%emt 0:00:02]} a6 {[%emt 0:00:01]} 4. Ba4 {[%emt 0:00:02]} Nf6 {[%emt 0:00:02]} 5. d3 {[%emt 0:00:04]} Bc5 {[%emt 0:00:05]} 6. c3 {[%emt 0:00:03]} O-O {[%emt 0:00:12]} 7. O-O {[%emt 0:00:04]} d6 {[%emt 0:00:03]} 8. h3 {[%emt 0:00:05]} Ba7 {[%emt 0:00:02]} 9. Nbd2 {[%emt 0:00:20]} Kh8 {[%emt 0:02:57]} 10. Re1 {[%emt 0:00:16]} Ng8 {[%emt 0:00:09]} 11. Nf1 {[%emt 0:00:25]} f5 {[%emt 0:00:08]} 12. exf5 {[%emt 0:00:13]} Bxf5 {[%emt 0:00:02]} 13. Ng3 {[%emt 0:00:29]} Bd7 {[%emt 0:00:01]} 14. Be3 {[%emt 0:01:37]} Bxe3 {[%emt 0:00:10]} 15. Rxe3 {[%emt 0:00:07]} Nf6 {[%emt 0:00:01]} 16. d4 {[%emt 0:01:08]} Nd5 {[%emt 0:00:07]} 17. Re1 {[%emt 0:00:13]} exd4 {[%emt 0:00:05]} 18. Nxd4 {[%emt 0:00:57]} Nf4 {[%emt 0:00:08]} 19. Nxc6 {[%emt 0:00:46]} bxc6 {[%emt 0:00:04]} 20. Qd2 {[%emt 0:04:24]} Qg5 {[%emt 0:00:29]} 21. Rad1 {[%emt 0:03:44]} h5 {[%emt 0:00:04]} 22. h4 {[%emt 0:01:24]} Qxh4 {[%emt 0:00:03]} 23. Ne4 {[%emt 0:00:32]} Nxg2 {[%emt 0:00:47]} 24. Kxg2 {[%emt 0:00:16]} Bh3+ {[%emt 0:04:00]} 25. Kg1 {[%emt 0:00:01]} Qg4+ {[%emt 0:00:01]} 26. Ng3 {[%emt 0:00:06]} Qxa4 {[%emt 0:00:02]} 27. Re4 {[%emt 0:00:26]} Qa5 {[%emt 0:01:44]} 28. b4 {[%emt 0:00:27]} Qd5 {[%emt 0:00:01]} 29. Qxd5 {[%emt 0:00:23]} cxd5 {[%emt 0:00:01]} 30. Rxd5 {[%emt 0:00:04]} g6 {[%emt 0:00:01]} 31. Re7 {[%emt 0:01:16]} Rae8 {[%emt 0:00:01]} 32. Rxc7 {[%emt 0:00:12]} Re1+ {[%emt 0:01:11]} 33. Kh2 {[%emt 0:00:01]} Bg4 {[%emt 0:00:00]} 34. Rd2 {[%emt 0:00:18]} h4 {[%emt 0:00:04]} 35. Rc4 {[%emt 0:00:17]} hxg3+ {[%emt 0:00:07]} 36. Kxg3 {[%emt 0:00:03]} Bf3 {[%emt 0:02:32]} 37. Rxd6 {[%emt 0:00:13]} Rg1+ {[%emt 0:00:33]} 38. Kh3 {[%emt 0:00:01]} Rf7 {[%emt 0:00:36]} 39. Rd8+ {[%emt 0:00:14]} Kg7 {[%emt 0:00:00]} 40. Rdc8 {[%emt 0:00:15]} Bd5 {[%emt 0:00:54]} 41. R4c5 {[%emt 0:00:12]} Be6+ {[%emt 0:00:13]} 42. Kh2 {[%emt 0:00:01]} Rf1 {[%emt 0:00:01]} 43. R8c7 {[%emt 0:00:03]} R1xf2+ {[%emt 0:00:02]} 44. Kg3 {[%emt 0:00:01]} Rxa2 {[%emt 0:00:12]} 45. Rxf7+ {[%emt 0:00:08]} Kxf7 {[%emt 0:00:04]} 46. Rc6 {[%emt 0:00:11]} Kf6 {[%emt 0:00:06]} 47. Kf4 {[%emt 0:00:02]} g5+ {[%emt 0:00:02]} 48. Kg3 {[%emt 0:00:08]} Ra3 {[%emt 0:00:20]} 49. Rc5 {[%emt 0:00:06]} Ra1 {[%emt 0:00:34]} 50. Rc6 {[%emt 0:00:06]} g4 {[%emt 0:00:01]} 51. Rc5 {[%emt 0:00:06]} Rd1 {[%emt 0:00:07]} 0-1

[Event "FIDE Open World Rapid 2024"]
[Site "New York"]
[Date "2024.12.27"]
[Round "7.15"]
[White "Lomasov, Semyon"]
[Black "So, Wesley"]
[Result "1/2-1/2"]
[ECO "C55"]
[WhiteElo "2559"]
[BlackElo "2747"]
[Annotator "TA"]
[PlyCount "52"]
[EventDate "2024.12.14"]
[EventType "swiss"]
[EventCountry "USA"]
[SourceTitle "playchess.com"]
[Source "ChessBase"]
[SourceQuality "1"]
[TimeControl "900+10"]

{[%evp 9,52,12,20,20,16,10,22,10,10,12,3,2,20,17,17,15,8,0,8,7,0,0,0,0,0,0,0,0,0,0,0,0,0,0,0,0,0,0,0,-8,-6,-9,0,0,0]} 1. e4 {[%emt 0:00:01]} e5 {[%emt 0:00:03]} 2. Nf3 {[%emt 0:00:02]} Nc6 {[%emt 0:00:01]} 3. Bc4 {[%emt 0:00:03]} Nf6 {[%emt 0:00:02]} 4. d3 {[%emt 0:00:03]} Be7 {[%emt 0:00:03]} 5. Nc3 {[%emt 0:00:17]} d6 {[%emt 0:00:05]} 6. a4 {[%emt 0:00:01]} O-O {[%emt 0:00:05]} 7. O-O {[%emt 0:00:02]} Be6 {[%emt 0:00:09]} 8. Nd5 {[%emt 0:00:05]} Bxd5 {[%emt 0:00:01]} 9. exd5 {[%emt 0:00:02]} Nb4 {[%emt 0:00:02]} 10. d4 {[%emt 0:00:02]} Nbxd5 {[%emt 0:00:01]} 11. dxe5 {[%emt 0:00:05]} dxe5 {[%emt 0:00:01]} 12. Nxe5 {[%emt 0:00:02]} c6 {[%emt 0:00:01]} 13. Nd3 {[%emt 0:01:00]} Qc7 {[%emt 0:00:35]} 14. Re1 {[%emt 0:00:29]} Rae8 {[%emt 0:00:51]} 15. g3 {[%emt 0:00:53]} Bd6 {[%emt 0:00:02]} 16. Bg5 {[%emt 0:01:29]} Rxe1+ {[%emt 0:00:43]} 17. Qxe1 {[%emt 0:00:14]} h6 {[%emt 0:00:03]} 18. Bxf6 {[%emt 0:00:35]} Nxf6 {[%emt 0:00:03]} 19. Qe3 {[%emt 0:00:19]} a6 {[%emt 0:00:45]} 20. Qf3 {[%emt 0:01:01]} b5 {[%emt 0:01:07]} 21. axb5 {[%emt 0:00:01]} axb5 {[%emt 0:00:06]} 22. Bb3 {[%emt 0:00:06]} c5 {[%emt 0:00:05] And now ...c4 would win.} 23. c4 {[%emt 0:00:11]} b4 {[%emt 0:00:03]} 24. Ra6 {[%emt 0:00:58]} Rd8 {[%emt 0:00:32]} 25. Kg2 {[%emt 0:00:31]} Qe7 {[%emt 0:03:08]} 26. Ba4 {[%emt 0:01:30]} Be5 {[%emt 0:01:56]} 1/2-1/2

[Event "FIDE Open World Rapid 2024"]
[Site "New York"]
[Date "2024.12.27"]
[Round "7.15"]
[White "Moradiabadi, Elshan"]
[Black "Suleymenov, Alisher"]
[Result "1/2-1/2"]
[ECO "A34"]
[WhiteElo "2512"]
[BlackElo "2500"]
[Annotator "ChessBase"]
[PlyCount "66"]
[EventDate "2024.12.14"]
[EventType "swiss"]
[EventCountry "USA"]
[SourceTitle "playchess.com"]
[Source "ChessBase"]
[SourceQuality "1"]
[TimeControl "900+10"]

1. c4 {[%emt 0:00:01]} Nf6 {[%emt 0:00:18]} 2. Nc3 {[%emt 0:00:01]} c5 {[%emt 0:00:17]} 3. Nf3 {[%emt 0:00:05]} d5 {[%emt 0:00:01]} 4. cxd5 {[%emt 0:00:04]} Nxd5 {[%emt 0:00:01]} 5. e4 {[%emt 0:00:02]} Nb4 {[%emt 0:00:02]} 6. Bc4 {[%emt 0:00:02]} Nd3+ {[%emt 0:00:02]} 7. Ke2 {[%emt 0:00:49]} Nf4+ {[%emt 0:00:01]} 8. Kf1 {[%emt 0:00:01]} Ne6 {[%emt 0:00:01]} 9. h4 {[%emt 0:00:01]} Nc6 {[%emt 0:01:13]} 10. d3 {[%emt 0:00:04]} Ned4 {[%emt 0:00:57]} 11. Bf4 {[%emt 0:02:13]} e6 {[%emt 0:01:11]} 12. Nb5 {[%emt 0:01:07]} Nxb5 {[%emt 0:00:03]} 13. Bxb5 {[%emt 0:00:01]} Bd7 {[%emt 0:00:10]} 14. Rc1 {[%emt 0:00:42]} Be7 {[%emt 0:00:43]} 15. h5 {[%emt 0:00:32]} h6 {[%emt 0:00:11]} 16. Qd2 {[%emt 0:00:06]} a6 {[%emt 0:03:28]} 17. Bxc6 {[%emt 0:01:02]} Bxc6 {[%emt 0:00:01]} 18. Ne5 {[%emt 0:00:01]} Bb5 {[%emt 0:01:37]} 19. Rh3 {[%emt 0:00:02]} Rc8 {[%emt 0:00:34]} 20. Kg1 {[%emt 0:00:08]} Bg5 {[%emt 0:00:38]} 21. Bxg5 {[%emt 0:01:15]} hxg5 {[%emt 0:00:41]} 22. Ng4 {[%emt 0:00:58]} f6 {[%emt 0:01:15]} 23. Qe3 {[%emt 0:01:15]} b6 {[%emt 0:00:46]} 24. Qf3 {[%emt 0:02:47]} Kf7 {[%emt 0:01:52]} 25. Ne5+ {[%emt 0:00:51]} Kg8 {[%emt 0:00:02]} 26. Ng4 {[%emt 0:00:56]} e5 {[%emt 0:00:56]} 27. h6 {[%emt 0:00:34]} Bd7 {[%emt 0:00:01]} 28. hxg7 {[%emt 0:01:27]} Rxh3 {[%emt 0:00:01]} 29. Qxh3 {[%emt 0:00:01]} Bxg4 {[%emt 0:00:04]} 30. Qxg4 {[%emt 0:00:02]} Kxg7 {[%emt 0:00:56]} 31. b4 {[%emt 0:00:01]} Rc7 {[%emt 0:00:19]} 32. bxc5 {[%emt 0:00:02]} Rxc5 {[%emt 0:00:02]} 33. Rxc5 {[%emt 0:00:28]} bxc5 {[%emt 0:00:02]} 1/2-1/2